{"text_format":"3","workbook":"xlsx","n_sheets":1,"sheets":["Stok Listesi"],"not_rendered":{"images":1,"defined_names":3},"read":"whole","date_system":"1900"}

{"sheet":"Stok Listesi","index":0,"n_rows":28,"n_cols":13,"rows_kept":28}
[{"$nulls":12}," "]
[{"$nulls":10},"Yeniden sipariş edilecek öğeler vurgulansın mı?","Evet"]
[null,"Yeniden Sipariş İçin","Stok Kodu","Ad","Açıklama","Birim Fiyatı","Stoktaki Miktar","Stok Değeri","Yeniden Sipariş Düzeyi","Gün Olarak Yeniden Sipariş Zamanı","Yeniden Sipariş Miktarı","Devam Durumu?"]
[null,{"$f":"IFERROR((Envanter_Listesi_Tablosu[[#This Row],[Stoktaki Miktar]]<=Envanter_Listesi_Tablosu[[#This Row],[Yeniden Sipariş Düzeyi]])*(Envanter_Listesi_Tablosu[[#This Row],[Devam Durumu?]]=\"\")*valHighlight,0)","v":1},"IN0001","Öğe 1","Açıklama 1",{"v":51,"d":"51.00 ₺"},25,{"$f":"Envanter_Listesi_Tablosu[[#This Row],[Birim Fiyatı]]*Envanter_Listesi_Tablosu[[#This Row],[Stoktaki Miktar]]","v":{"v":1275,"d":"1,275.00 ₺"}},29,13,50]
[null,{"$f":"IFERROR((Envanter_Listesi_Tablosu[[#This Row],[Stoktaki Miktar]]<=Envanter_Listesi_Tablosu[[#This Row],[Yeniden Sipariş Düzeyi]])*(Envanter_Listesi_Tablosu[[#This Row],[Devam Durumu?]]=\"\")*valHighlight,0)","v":1},"IN0002","Öğe 2","Açıklama 2",{"v":93,"d":"93.00 ₺"},132,{"$f":"Envanter_Listesi_Tablosu[[#This Row],[Birim Fiyatı]]*Envanter_Listesi_Tablosu[[#This Row],[Stoktaki Miktar]]","v":{"v":12276,"d":"12,276.00 ₺"}},231,4,50]
[null,{"$f":"IFERROR((Envanter_Listesi_Tablosu[[#This Row],[Stoktaki Miktar]]<=Envanter_Listesi_Tablosu[[#This Row],[Yeniden Sipariş Düzeyi]])*(Envanter_Listesi_Tablosu[[#This Row],[Devam Durumu?]]=\"\")*valHighlight,0)","v":0},"IN0003","Öğe 3","Açıklama 3",{"v":57,"d":"57.00 ₺"},151,{"$f":"Envanter_Listesi_Tablosu[[#This Row],[Birim Fiyatı]]*Envanter_Listesi_Tablosu[[#This Row],[Stoktaki Miktar]]","v":{"v":8607,"d":"8,607.00 ₺"}},114,11,150]
[null,{"$f":"IFERROR((Envanter_Listesi_Tablosu[[#This Row],[Stoktaki Miktar]]<=Envanter_Listesi_Tablosu[[#This Row],[Yeniden Sipariş Düzeyi]])*(Envanter_Listesi_Tablosu[[#This Row],[Devam Durumu?]]=\"\")*valHighlight,0)","v":0},"IN0004","Öğe 4","Açıklama 4",{"v":19,"d":"19.00 ₺"},186,{"$f":"Envanter_Listesi_Tablosu[[#This Row],[Birim Fiyatı]]*Envanter_Listesi_Tablosu[[#This Row],[Stoktaki Miktar]]","v":{"v":3534,"d":"3,534.00 ₺"}},158,6,50]
[null,{"$f":"IFERROR((Envanter_Listesi_Tablosu[[#This Row],[Stoktaki Miktar]]<=Envanter_Listesi_Tablosu[[#This Row],[Yeniden Sipariş Düzeyi]])*(Envanter_Listesi_Tablosu[[#This Row],[Devam Durumu?]]=\"\")*valHighlight,0)","v":0},"IN0005","Öğe 5","Açıklama 5",{"v":75,"d":"75.00 ₺"},62,{"$f":"Envanter_Listesi_Tablosu[[#This Row],[Birim Fiyatı]]*Envanter_Listesi_Tablosu[[#This Row],[Stoktaki Miktar]]","v":{"v":4650,"d":"4,650.00 ₺"}},39,12,50]
[null,{"$f":"IFERROR((Envanter_Listesi_Tablosu[[#This Row],[Stoktaki Miktar]]<=Envanter_Listesi_Tablosu[[#This Row],[Yeniden Sipariş Düzeyi]])*(Envanter_Listesi_Tablosu[[#This Row],[Devam Durumu?]]=\"\")*valHighlight,0)","v":1},"IN0006","Öğe 6","Açıklama 6",{"v":11,"d":"11.00 ₺"},5,{"$f":"Envanter_Listesi_Tablosu[[#This Row],[Birim Fiyatı]]*Envanter_Listesi_Tablosu[[#This Row],[Stoktaki Miktar]]","v":{"v":55,"d":"55.00 ₺"}},9,13,150]
[null,{"$f":"IFERROR((Envanter_Listesi_Tablosu[[#This Row],[Stoktaki Miktar]]<=Envanter_Listesi_Tablosu[[#This Row],[Yeniden Sipariş Düzeyi]])*(Envanter_Listesi_Tablosu[[#This Row],[Devam Durumu?]]=\"\")*valHighlight,0)","v":0},"IN0007","Öğe 7","Açıklama 7",{"v":56,"d":"56.00 ₺"},58,{"$f":"Envanter_Listesi_Tablosu[[#This Row],[Birim Fiyatı]]*Envanter_Listesi_Tablosu[[#This Row],[Stoktaki Miktar]]","v":{"v":3248,"d":"3,248.00 ₺"}},109,7,100,"Evet"]
[null,{"$f":"IFERROR((Envanter_Listesi_Tablosu[[#This Row],[Stoktaki Miktar]]<=Envanter_Listesi_Tablosu[[#This Row],[Yeniden Sipariş Düzeyi]])*(Envanter_Listesi_Tablosu[[#This Row],[Devam Durumu?]]=\"\")*valHighlight,0)","v":1},"IN0008","Öğe 8","Açıklama 8",{"v":38,"d":"38.00 ₺"},101,{"$f":"Envanter_Listesi_Tablosu[[#This Row],[Birim Fiyatı]]*Envanter_Listesi_Tablosu[[#This Row],[Stoktaki Miktar]]","v":{"v":3838,"d":"3,838.00 ₺"}},162,3,100]
[null,{"$f":"IFERROR((Envanter_Listesi_Tablosu[[#This Row],[Stoktaki Miktar]]<=Envanter_Listesi_Tablosu[[#This Row],[Yeniden Sipariş Düzeyi]])*(Envanter_Listesi_Tablosu[[#This Row],[Devam Durumu?]]=\"\")*valHighlight,0)","v":0},"IN0009","Öğe 9","Açıklama 9",{"v":59,"d":"59.00 ₺"},122,{"$f":"Envanter_Listesi_Tablosu[[#This Row],[Birim Fiyatı]]*Envanter_Listesi_Tablosu[[#This Row],[Stoktaki Miktar]]","v":{"v":7198,"d":"7,198.00 ₺"}},82,3,150]
[null,{"$f":"IFERROR((Envanter_Listesi_Tablosu[[#This Row],[Stoktaki Miktar]]<=Envanter_Listesi_Tablosu[[#This Row],[Yeniden Sipariş Düzeyi]])*(Envanter_Listesi_Tablosu[[#This Row],[Devam Durumu?]]=\"\")*valHighlight,0)","v":1},"IN0010","Öğe 10","Açıklama 10",{"v":50,"d":"50.00 ₺"},175,{"$f":"Envanter_Listesi_Tablosu[[#This Row],[Birim Fiyatı]]*Envanter_Listesi_Tablosu[[#This Row],[Stoktaki Miktar]]","v":{"v":8750,"d":"8,750.00 ₺"}},283,8,150]
[null,{"$f":"IFERROR((Envanter_Listesi_Tablosu[[#This Row],[Stoktaki Miktar]]<=Envanter_Listesi_Tablosu[[#This Row],[Yeniden Sipariş Düzeyi]])*(Envanter_Listesi_Tablosu[[#This Row],[Devam Durumu?]]=\"\")*valHighlight,0)","v":1},"IN0011","Öğe 11","Açıklama 11",{"v":59,"d":"59.00 ₺"},176,{"$f":"Envanter_Listesi_Tablosu[[#This Row],[Birim Fiyatı]]*Envanter_Listesi_Tablosu[[#This Row],[Stoktaki Miktar]]","v":{"v":10384,"d":"10,384.00 ₺"}},229,1,100]
[null,{"$f":"IFERROR((Envanter_Listesi_Tablosu[[#This Row],[Stoktaki Miktar]]<=Envanter_Listesi_Tablosu[[#This Row],[Yeniden Sipariş Düzeyi]])*(Envanter_Listesi_Tablosu[[#This Row],[Devam Durumu?]]=\"\")*valHighlight,0)","v":1},"IN0012","Öğe 12","Açıklama 12",{"v":18,"d":"18.00 ₺"},22,{"$f":"Envanter_Listesi_Tablosu[[#This Row],[Birim Fiyatı]]*Envanter_Listesi_Tablosu[[#This Row],[Stoktaki Miktar]]","v":{"v":396,"d":"396.00 ₺"}},36,12,50]
[null,{"$f":"IFERROR((Envanter_Listesi_Tablosu[[#This Row],[Stoktaki Miktar]]<=Envanter_Listesi_Tablosu[[#This Row],[Yeniden Sipariş Düzeyi]])*(Envanter_Listesi_Tablosu[[#This Row],[Devam Durumu?]]=\"\")*valHighlight,0)","v":1},"IN0013","Öğe 13","Açıklama 13",{"v":26,"d":"26.00 ₺"},72,{"$f":"Envanter_Listesi_Tablosu[[#This Row],[Birim Fiyatı]]*Envanter_Listesi_Tablosu[[#This Row],[Stoktaki Miktar]]","v":{"v":1872,"d":"1,872.00 ₺"}},102,9,100]
[null,{"$f":"IFERROR((Envanter_Listesi_Tablosu[[#This Row],[Stoktaki Miktar]]<=Envanter_Listesi_Tablosu[[#This Row],[Yeniden Sipariş Düzeyi]])*(Envanter_Listesi_Tablosu[[#This Row],[Devam Durumu?]]=\"\")*valHighlight,0)","v":1},"IN0014","Öğe 14","Açıklama 14",{"v":42,"d":"42.00 ₺"},62,{"$f":"Envanter_Listesi_Tablosu[[#This Row],[Birim Fiyatı]]*Envanter_Listesi_Tablosu[[#This Row],[Stoktaki Miktar]]","v":{"v":2604,"d":"2,604.00 ₺"}},83,2,100]
[null,{"$f":"IFERROR((Envanter_Listesi_Tablosu[[#This Row],[Stoktaki Miktar]]<=Envanter_Listesi_Tablosu[[#This Row],[Yeniden Sipariş Düzeyi]])*(Envanter_Listesi_Tablosu[[#This Row],[Devam Durumu?]]=\"\")*valHighlight,0)","v":0},"IN0015","Öğe 15","Açıklama 15",{"v":32,"d":"32.00 ₺"},46,{"$f":"Envanter_Listesi_Tablosu[[#This Row],[Birim Fiyatı]]*Envanter_Listesi_Tablosu[[#This Row],[Stoktaki Miktar]]","v":{"v":1472,"d":"1,472.00 ₺"}},23,15,50]
[null,{"$f":"IFERROR((Envanter_Listesi_Tablosu[[#This Row],[Stoktaki Miktar]]<=Envanter_Listesi_Tablosu[[#This Row],[Yeniden Sipariş Düzeyi]])*(Envanter_Listesi_Tablosu[[#This Row],[Devam Durumu?]]=\"\")*valHighlight,0)","v":1},"IN0016","Öğe 16","Açıklama 16",{"v":90,"d":"90.00 ₺"},96,{"$f":"Envanter_Listesi_Tablosu[[#This Row],[Birim Fiyatı]]*Envanter_Listesi_Tablosu[[#This Row],[Stoktaki Miktar]]","v":{"v":8640,"d":"8,640.00 ₺"}},180,3,50]
[null,{"$f":"IFERROR((Envanter_Listesi_Tablosu[[#This Row],[Stoktaki Miktar]]<=Envanter_Listesi_Tablosu[[#This Row],[Yeniden Sipariş Düzeyi]])*(Envanter_Listesi_Tablosu[[#This Row],[Devam Durumu?]]=\"\")*valHighlight,0)","v":0},"IN0017","Öğe 17","Açıklama 17",{"v":97,"d":"97.00 ₺"},57,{"$f":"Envanter_Listesi_Tablosu[[#This Row],[Birim Fiyatı]]*Envanter_Listesi_Tablosu[[#This Row],[Stoktaki Miktar]]","v":{"v":5529,"d":"5,529.00 ₺"}},98,12,50,"Evet"]
[null,{"$f":"IFERROR((Envanter_Listesi_Tablosu[[#This Row],[Stoktaki Miktar]]<=Envanter_Listesi_Tablosu[[#This Row],[Yeniden Sipariş Düzeyi]])*(Envanter_Listesi_Tablosu[[#This Row],[Devam Durumu?]]=\"\")*valHighlight,0)","v":1},"IN0018","Öğe 18","Açıklama 18",{"v":12,"d":"12.00 ₺"},6,{"$f":"Envanter_Listesi_Tablosu[[#This Row],[Birim Fiyatı]]*Envanter_Listesi_Tablosu[[#This Row],[Stoktaki Miktar]]","v":{"v":72,"d":"72.00 ₺"}},7,13,50]
[null,{"$f":"IFERROR((Envanter_Listesi_Tablosu[[#This Row],[Stoktaki Miktar]]<=Envanter_Listesi_Tablosu[[#This Row],[Yeniden Sipariş Düzeyi]])*(Envanter_Listesi_Tablosu[[#This Row],[Devam Durumu?]]=\"\")*valHighlight,0)","v":1},"IN0019","Öğe 19","Açıklama 19",{"v":82,"d":"82.00 ₺"},143,{"$f":"Envanter_Listesi_Tablosu[[#This Row],[Birim Fiyatı]]*Envanter_Listesi_Tablosu[[#This Row],[Stoktaki Miktar]]","v":{"v":11726,"d":"11,726.00 ₺"}},164,12,150]
[null,{"$f":"IFERROR((Envanter_Listesi_Tablosu[[#This Row],[Stoktaki Miktar]]<=Envanter_Listesi_Tablosu[[#This Row],[Yeniden Sipariş Düzeyi]])*(Envanter_Listesi_Tablosu[[#This Row],[Devam Durumu?]]=\"\")*valHighlight,0)","v":0},"IN0020","Öğe 20","Açıklama 20",{"v":16,"d":"16.00 ₺"},124,{"$f":"Envanter_Listesi_Tablosu[[#This Row],[Birim Fiyatı]]*Envanter_Listesi_Tablosu[[#This Row],[Stoktaki Miktar]]","v":{"v":1984,"d":"1,984.00 ₺"}},113,14,50]
[null,{"$f":"IFERROR((Envanter_Listesi_Tablosu[[#This Row],[Stoktaki Miktar]]<=Envanter_Listesi_Tablosu[[#This Row],[Yeniden Sipariş Düzeyi]])*(Envanter_Listesi_Tablosu[[#This Row],[Devam Durumu?]]=\"\")*valHighlight,0)","v":0},"IN0021","Öğe 21","Açıklama 21",{"v":19,"d":"19.00 ₺"},112,{"$f":"Envanter_Listesi_Tablosu[[#This Row],[Birim Fiyatı]]*Envanter_Listesi_Tablosu[[#This Row],[Stoktaki Miktar]]","v":{"v":2128,"d":"2,128.00 ₺"}},75,11,50]
[null,{"$f":"IFERROR((Envanter_Listesi_Tablosu[[#This Row],[Stoktaki Miktar]]<=Envanter_Listesi_Tablosu[[#This Row],[Yeniden Sipariş Düzeyi]])*(Envanter_Listesi_Tablosu[[#This Row],[Devam Durumu?]]=\"\")*valHighlight,0)","v":0},"IN0022","Öğe 22","Açıklama 22",{"v":24,"d":"24.00 ₺"},182,{"$f":"Envanter_Listesi_Tablosu[[#This Row],[Birim Fiyatı]]*Envanter_Listesi_Tablosu[[#This Row],[Stoktaki Miktar]]","v":{"v":4368,"d":"4,368.00 ₺"}},132,15,150]
[null,{"$f":"IFERROR((Envanter_Listesi_Tablosu[[#This Row],[Stoktaki Miktar]]<=Envanter_Listesi_Tablosu[[#This Row],[Yeniden Sipariş Düzeyi]])*(Envanter_Listesi_Tablosu[[#This Row],[Devam Durumu?]]=\"\")*valHighlight,0)","v":0},"IN0023","Öğe 23","Açıklama 23",{"v":29,"d":"29.00 ₺"},106,{"$f":"Envanter_Listesi_Tablosu[[#This Row],[Birim Fiyatı]]*Envanter_Listesi_Tablosu[[#This Row],[Stoktaki Miktar]]","v":{"v":3074,"d":"3,074.00 ₺"}},142,1,150,"Evet"]
[null,{"$f":"IFERROR((Envanter_Listesi_Tablosu[[#This Row],[Stoktaki Miktar]]<=Envanter_Listesi_Tablosu[[#This Row],[Yeniden Sipariş Düzeyi]])*(Envanter_Listesi_Tablosu[[#This Row],[Devam Durumu?]]=\"\")*valHighlight,0)","v":0},"IN0024","Öğe 24","Açıklama 24",{"v":75,"d":"75.00 ₺"},173,{"$f":"Envanter_Listesi_Tablosu[[#This Row],[Birim Fiyatı]]*Envanter_Listesi_Tablosu[[#This Row],[Stoktaki Miktar]]","v":{"v":12975,"d":"12,975.00 ₺"}},127,9,100]
[null,{"$f":"IFERROR((Envanter_Listesi_Tablosu[[#This Row],[Stoktaki Miktar]]<=Envanter_Listesi_Tablosu[[#This Row],[Yeniden Sipariş Düzeyi]])*(Envanter_Listesi_Tablosu[[#This Row],[Devam Durumu?]]=\"\")*valHighlight,0)","v":0},"IN0025","Öğe 25","Açıklama 25",{"v":14,"d":"14.00 ₺"},28,{"$f":"Envanter_Listesi_Tablosu[[#This Row],[Birim Fiyatı]]*Envanter_Listesi_Tablosu[[#This Row],[Stoktaki Miktar]]","v":{"v":392,"d":"392.00 ₺"}},21,8,50]